bitfinex-derivatives/quotes_ETHF0:USTF0_20230403
["timestamp","ask_amount","ask_price","bid_price","bid_amount"]
[1680525131646,0.12724407,1803.3,1803.0,5.18342547]
[1680525131647,0.12724407,1803.3,1803.0,1.68470349]
[1680525132046,0.12724407,1803.3,1803.0,0.58070349]
[1680525132243,3.2078,1803.2,1803.0,0.58070349]
[1680525132647,1.0,1803.1,1803.0,0.58070349]
[1680525132841,3.2078,1803.2,1803.0,0.58070349]
[1680525135858,0.12333112,1803.1,1803.0,0.58070349]
[1680525136357,0.12333112,1803.1,1802.9,2.55932896]
[1680525138265,0.12333112,1803.1,1802.9,1.68770349]
[1680525138761,0.12333112,1803.1,1803.0,1.108]
[1680525140461,0.12333112,1803.1,1803.0,1.68870349]
[1680525140662,0.12333112,1803.1,1802.9,1.68870349]
[1680525141861,0.12333112,1803.1,1803.0,1.68470349]
[1680525142160,4.32704619,1803.4,1803.0,2.104]
[1680525142758,10.9,1803.3,1803.1,1.0]
[1680525143359,10.9,1803.3,1803.0,2.104]
[1680525145966,10.9,1803.3,1803.0,1.104]
[1680525147063,0.57749409,1803.5,1803.2,1.108]
[1680525147265,3.78529409,1803.7,1803.4,1.099]
[1680525147471,0.57749409,1803.7,1803.6,1.099]
[1680525147765,10.07749409,1803.7,1803.6,1.099]
[1680525147962,10.07749409,1803.7,1803.5,1.17853543]
[1680525148571,0.57749409,1803.6,1803.5,1.17853543]
[1680525148866,10.07749409,1803.7,1803.5,1.17853543]
[1680525149667,13.28529409,1803.7,1803.5,1.17853543]
[1680525149866,0.57749409,1803.6,1803.5,1.17853543]
[1680525151165,1.57749409,1803.6,1803.5,1.17853543]
[1680525151359,1.57749409,1803.6,1803.5,0.07153543]
[1680525151764,1.57749409,1803.6,1803.3,1.104]
[1680525151966,3.2078,1803.5,1803.3,1.104]
[1680525152670,0.57749409,1803.6,1803.3,1.104]
[1680525156971,13.28529409,1803.7,1803.3,1.104]
[1680525157873,1.0,1803.6,1803.3,1.66660067]
[1680525158263,13.28529409,1803.7,1803.3,1.66660067]
[1680525158469,0.57749409,1803.6,1803.3,1.66660067]
[1680525158667,1.57749409,1803.6,1803.3,1.66660067]
[1680525158973,13.28529409,1803.7,1803.3,1.66660067]
[1680525159673,0.57749409,1803.6,1803.3,1.66660067]
[1680525159875,1.57749409,1803.6,1803.3,1.66660067]
[1680525160069,0.57749409,1803.6,1803.3,1.66660067]
[1680525162171,0.57749409,1803.6,1803.4,1.099]
[1680525163370,3.78529409,1803.5,1803.4,1.099]
[1680525164676,3.78529409,1803.5,1803.2,1.107]
[1680525164874,0.57749409,1803.4,1803.2,1.107]
[1680525165075,1.57749409,1803.4,1803.2,1.107]
[1680525165674,2.67649409,1803.4,1803.3,0.07140933]
[1680525165877,5.3068,1803.4,1802.9,2.55632896]
[1680525166073,3.2078,1803.2,1802.9,2.55632896]
[1680525166279,3.2078,1803.2,1802.9,1.68470349]
[1680525168580,4.3068,1803.2,1802.9,0.58070349]
[1680525168783,1.0,1803.1,1802.8,0.58070349]
[1680525169076,3.2078,1803.0,1802.7,3.10669509]
[1680525169279,3.2078,1803.0,1802.7,2.23506962]
[1680525169669,3.2078,1803.0,1802.7,1.68470349]
[1680525169869,3.2078,1803.0,1802.8,0.58070349]
[1680525170478,3.2078,1803.0,1802.7,2.55632896]
[1680525170682,3.2078,1803.0,1802.8,0.58070349]
[1680525170885,3.2078,1803.0,1802.7,2.55632896]
[1680525171378,3.2078,1803.0,1802.8,0.58070349]
[1680525171783,3.2078,1803.0,1802.7,2.55632896]
[1680525172085,3.2078,1803.0,1802.7,1.45232896]
[1680525172377,3.2078,1803.0,1802.8,0.58070349]
[1680525175077,9.5,1802.9,1802.8,0.58070349]
[1680525179792,11.17638483,1802.9,1802.7,0.58070349]
[1680525180080,4.2078,1802.8,1802.7,0.58070349]
[1680525180281,3.2078,1802.8,1802.7,0.58070349]
[1680525180482,3.2078,1802.8,1802.6,0.58070349]
[1680525180688,3.38894374,1802.8,1802.6,0.58070349]
[1680525184993,7.0,1802.7,1802.6,0.58070349]
[1680525186290,7.0,1802.7,1802.5,1.45232896]
[1680525188196,7.0,1802.7,1802.5,0.58070349]
[1680525192201,1.28914374,1802.8,1802.5,0.58070349]
[1680525192701,4.8,1802.7,1802.5,0.58070349]
[1680525195703,0.13486344,1802.6,1802.5,0.58070349]
[1680525195997,4.8,1802.7,1802.5,0.58070349]
[1680525198007,4.8,1802.7,1802.5,1.68770349]
[1680525198503,4.8,1802.7,1802.5,2.68770349]
[1680525198701,4.8,1802.7,1802.5,1.68770349]
[1680525202006,4.8,1802.7,1802.5,0.58070349]
[1680525202305,4.8,1802.7,1802.5,1.45232896]
[1680525202705,4.8,1802.7,1802.6,0.58070349]
[1680525203607,2.104,1802.9,1802.6,0.58070349]
[1680525203809,1.104,1802.9,1802.6,0.58070349]
[1680525204604,4.6,1802.8,1802.6,0.58070349]
[1680525206205,4.6,1802.8,1802.7,0.58070349]
[1680525207804,4.6,1802.8,1802.6,0.58070349]
[1680525208010,4.6,1802.8,1802.6,1.45232896]
[1680525208209,7.8078,1802.8,1802.7,0.58070349]
[1680525210511,8.38518483,1802.8,1802.7,1.45232896]
[1680525210717,8.48384825,1802.8,1802.7,1.45232896]
[1680525211509,8.48384825,1802.8,1802.7,0.58070349]
[1680525211714,5.27604825,1802.8,1802.7,1.45232896]
[1680525211916,5.27604825,1802.8,1802.7,0.87162547]
[1680525212114,4.69866342,1802.8,1802.7,0.87162547]
[1680525212413,5.27604825,1802.8,1802.7,0.87162547]
[1680525212615,8.48384825,1802.8,1802.7,0.87162547]
[1680525217517,9.87201177,1802.8,1802.7,0.87162547]
[1680525222022,8.77301177,1802.8,1802.7,0.87162547]
[1680525222413,4.17301177,1802.8,1802.7,0.87162547]
[1680525223211,4.73582339,1802.8,1802.7,0.87162547]
[1680525224322,3.86927504,1802.8,1802.6,1.16222798]
[1680525224519,1.44815635,1802.7,1802.6,1.85020357]
[1680525225622,0.57926254,1802.7,1802.6,0.68797559]
[1680525225826,0.66322706,1802.7,1802.6,0.68797559]
[1680525226216,0.66322706,1802.7,1802.6,2.13709625]
[1680525228527,0.08396452,1802.7,1802.6,5.47619899]
[1680525228825,1.44815732,1802.9,1802.6,5.05647934]
[1680525229019,1.44815732,1802.9,1802.8,5.47906363]
[1680525229222,1.44815732,1802.9,1802.8,6.16699529]
[1680525229524,0.57926351,1802.9,1802.8,7.16699529]
[1680525229822,1.44815732,1802.9,1802.8,6.00273166]
[1680525230021,0.57926351,1802.9,1802.8,6.00273166]
[1680525230322,0.57926351,1802.9,1802.8,7.16651965]
[1680525232223,1.44815732,1803.0,1802.8,7.16651965]
[1680525232421,1.44815732,1803.0,1802.9,2.97157267]
[1680525232924,1.44815732,1803.0,1802.9,1.97157267]
[1680525233115,1.44815732,1803.0,1802.9,2.97157267]
[1680525233520,0.57926351,1803.0,1802.9,2.97157267]
[1680525233722,0.57926351,1803.0,1802.9,2.099]
[1680525233922,0.57926351,1803.0,1802.9,2.97156999]
[1680525234221,0.57926351,1803.0,1802.9,2.97156994]
[1680525234924,0.57926351,1803.0,1802.9,1.97156994]
[1680525236517,0.86889381,1803.0,1802.9,1.45408695]
[1680525236716,1.86889381,1803.0,1802.9,1.45408695]
[1680525236921,0.86889381,1803.0,1802.9,1.45408695]
[1680525237220,0.86889381,1803.0,1802.9,0.58151701]
[1680525238129,0.86889381,1803.0,1802.9,1.45408695]
[1680525238323,0.86889381,1803.0,1802.9,0.58151701]
[1680525239633,0.57885206,1803.0,1802.9,0.87256994]
[1680525239825,1.44774587,1803.0,1802.9,1.45405003]
[1680525240134,3.13376951,1803.0,1802.9,0.58148009]
[1680525240329,2.38811176,1803.0,1802.8,0.58148009]
[1680525240631,5.07598121,1802.9,1802.8,0.58148009]
[1680525240931,5.19940255,1802.9,1802.8,0.58148009]
[1680525241727,4.19940255,1802.9,1802.8,0.58148009]
[1680525242126,5.30340255,1802.9,1802.8,0.58148009]
[1680525250426,4.19940255,1802.9,1802.8,0.58148009]
[1680525251535,5.30340255,1802.9,1802.8,0.58148009]
[1680525251732,5.30367933,1802.9,1802.8,0.58148009]
[1680525252033,5.59209704,1802.9,1802.7,0.58148009]
[1680525252238,1.9674454,1802.8,1802.7,0.58148009]
[1680525252442,2.9674454,1802.8,1802.7,0.58148009]
[1680525252832,1.9674454,1802.8,1802.7,0.58148009]
[1680525254138,1.9674454,1802.8,1802.7,1.45405003]
[1680525254436,1.9674454,1802.8,1802.7,0.58148009]
[1680525255134,2.54636675,1802.8,1802.7,0.58148009]
[1680525255332,2.54636675,1802.8,1802.7,1.45405003]
[1680525255839,2.76750888,1802.8,1802.7,0.58148009]
[1680525256041,2.18858753,1802.8,1802.7,0.58148009]
[1680525256533,1.89904626,1802.8,1802.7,0.87256994]
[1680525260743,0.80004626,1802.8,1802.7,0.87256994]
[1680525261847,0.80004626,1802.8,1802.7,1.87256994]
[1680525262542,0.80004626,1802.8,1802.7,0.87256994]
[1680525271260,0.69940848,1802.8,1802.7,0.87256994]
[1680525271549,0.69940848,1802.8,1802.7,1.87256994]
[1680525272050,0.12050435,1802.8,1802.7,3.68369547]
[1680525272240,0.12050435,1802.8,1802.7,2.99578799]
[1680525277358,0.57890413,1802.9,1802.7,2.99578799]
[1680525277656,0.57890413,1802.9,1802.8,0.87224398]
[1680525279356,0.57890413,1802.9,1802.7,2.99578799]
[1680525279357,0.57890413,1802.9,1802.7,6.20358799]
[1680525279552,0.57890413,1802.9,1802.8,0.87230631]
[1680525280253,1.44734953,1803.0,1802.8,2.6756775]
[1680525280457,0.8684454,1803.1,1802.9,5.55543803]
[1680525280656,0.57890413,1803.3,1803.0,4.63510241]
[1680525280955,0.8684454,1803.3,1803.2,2.52820773]
[1680525281156,0.8684454,1803.3,1803.2,3.52820773]
[1680525281754,0.8684454,1803.3,1803.2,3.10969933]
[1680525281955,0.8684454,1803.3,1803.2,2.2374916]
[1680525282162,1.44739305,1803.3,1803.2,1.6904916]
[1680525282960,1.44739305,1803.3,1803.2,0.5814916]
[1680525284163,0.57894765,1803.3,1803.2,0.5814916]
[1680525284365,0.57894765,1803.3,1803.2,1.0]
[1680525284955,0.57894765,1803.3,1803.2,1.5814916]
[1680525285155,0.57894765,1803.4,1803.2,3.56269933]
[1680525285358,0.57894765,1803.3,1803.2,3.55989744]
[1680525285556,0.57894765,1803.3,1803.2,2.68768971]
[1680525285966,0.57894765,1803.3,1803.2,2.90856312]
[1680525286164,1.44739305,1803.4,1803.2,2.90856312]
[1680525286360,0.57894765,1803.4,1803.2,2.90856312]
[1680525288568,0.57894765,1803.5,1803.2,6.11636312]
[1680525289272,1.44739305,1803.5,1803.2,6.11636312]
[1680525289567,0.57894765,1803.5,1803.2,6.11636312]
[1680525289866,1.44739305,1803.5,1803.2,6.11636312]
[1680525290167,0.57894765,1803.5,1803.2,6.11636312]
[1680525292265,0.57894765,1803.5,1803.2,5.53487152]
[1680525292677,0.57894765,1803.5,1803.2,3.42867341]
[1680525294068,1.101,1803.4,1803.2,0.22087341]
[1680525294271,4.3088,1803.4,1803.2,0.22087341]
[1680525295070,1.57894765,1803.3,1803.2,0.22087341]
[1680525295272,1.0,1803.3,1803.0,0.5814916]
[1680525295473,1.0,1803.3,1802.9,2.56556449]
[1680525295787,1.0,1803.3,1802.9,1.69335676]
[1680525295788,3.2078,1803.2,1802.9,1.69335676]
[1680525298878,2.52827803,1803.4,1802.9,1.69335676]
[1680525298879,5.44658028,1803.4,1803.0,1.5814916]
[1680525299080,2.23878028,1803.4,1803.0,1.5814916]
[1680525299580,6.31502568,1803.4,1803.0,1.5814916]
[1680525299884,5.44658028,1803.4,1803.0,1.5814916]
[1680525300077,6.31502568,1803.4,1803.0,1.5814916]
[1680525300268,5.44658028,1803.4,1803.0,1.5814916]
[1680525300676,6.31502568,1803.4,1803.0,1.5814916]
[1680525302585,6.31502568,1803.4,1803.0,0.5814916]
[1680525302784,0.57894765,1803.3,1803.0,0.5814916]
[1680525302984,0.57894765,1803.3,1803.0,1.5814916]
[1680525304688,0.57894765,1803.3,1803.0,0.5814916]
[1680525305087,0.57894765,1803.3,1803.0,1.5814916]
[1680525306089,0.57894765,1803.3,1803.0,0.5814916]
[1680525308186,0.57894765,1803.3,1803.0,1.5814916]
[1680525309581,0.57894765,1803.3,1803.0,0.5814916]
[1680525309894,0.57894765,1803.3,1803.0,1.5814916]
[1680525310287,0.57894765,1803.3,1803.0,0.5814916]
[1680525310490,0.57894765,1803.3,1803.0,1.5814916]
[1680525311188,0.57894765,1803.3,1803.0,0.5814916]
[1680525311895,0.57894765,1803.3,1803.0,1.5814916]
[1680525312998,0.57894765,1803.3,1803.0,0.5814916]
[1680525313696,0.57894765,1803.3,1803.0,1.5814916]
[1680525313897,1.44739305,1803.3,1803.0,1.5814916]
[1680525314097,0.57894765,1803.3,1803.0,1.5814916]
[1680525314299,1.44739305,1803.3,1803.2,1.109]
[1680525315796,1.44739305,1803.3,1803.0,0.5814916]
[1680525315998,0.57894765,1803.2,1803.0,0.5814916]
[1680525316295,1.44739305,1803.2,1803.0,0.5814916]
[1680525316502,0.57894765,1803.2,1803.0,0.5814916]
[1680525317192,1.44739305,1803.3,1803.1,1.6904916]
[1680525317701,0.57894765,1803.2,1803.1,2.6904916]
[1680525317998,1.44739305,1803.3,1803.1,5.8982916]
[1680525318397,0.57894765,1803.2,1803.1,5.8982916]
[1680525318601,1.44739305,1803.3,1803.1,5.8982916]
[1680525319797,1.44739305,1803.3,1803.1,2.6904916]
[1680525320202,0.57894765,1803.2,1803.1,2.6904916]
[1680525320706,0.57894765,1803.2,1803.1,3.56269933]
[1680525320899,0.57894765,1803.2,1803.1,2.6904916]
[1680525321099,0.57894765,1803.2,1803.1,3.56269933]
[1680525321305,0.57894765,1803.2,1803.1,2.73172364]
[1680525321806,0.57894765,1803.3,1803.1,7.32823977]
[1680525322007,0.57894765,1803.3,1803.2,1.97920773]
[1680525322211,0.57894765,1803.3,1803.2,2.97920773]
[1680525326607,0.57894765,1803.3,1803.2,0.87220773]
[1680525330410,0.57894765,1803.3,1803.2,1.08888857]
[1680525335312,1.14147978,1803.3,1803.2,1.08888857]
[1680525342123,1.14147978,1803.3,1803.2,1.91388857]
[1680525344819,0.56253213,1803.3,1803.2,1.67038311]
[1680525345014,0.56253213,1803.3,1803.2,0.58149454]
[1680525345015,4.0762454,1803.3,1803.2,0.58149454]
[1680525345317,1.081,1803.2,1803.0,0.58155005]
[1680525345517,2.85445894,1803.1,1803.0,0.58155005]
[1680525345719,1.69762724,1803.1,1803.0,0.58155005]
[1680525351116,1.69762724,1803.1,1802.9,1.46174028]
[1680525351318,0.57802147,1803.0,1802.9,1.46174028]
[1680525352322,0.57802147,1803.0,1802.9,0.58941521]
[1680525352716,0.57802147,1803.0,1802.9,2.28674028]
[1680525352924,0.57802147,1803.2,1802.9,5.89842386]
[1680525353130,0.57802147,1803.2,1803.1,1.41314677]
[1680525353331,0.57802147,1803.2,1803.1,1.70372015]
[1680525353625,2.00968594,1803.3,1803.2,1.0]
[1680525353827,2.00968594,1803.3,1803.2,1.58114604]
[1680525354122,2.00968594,1803.3,1803.2,0.58114604]
[1680525357229,0.57802147,1803.3,1803.2,1.41314604]
[1680525357525,0.57802147,1803.3,1803.2,3.28485125]
[1680525357918,0.57802147,1803.3,1803.2,2.28485125]
[1680525358115,0.57802147,1803.3,1803.2,3.28485125]
[1680525358327,0.57802147,1803.3,1803.2,2.4131311]
[1680525358726,0.57802147,1803.3,1803.2,3.28485125]
[1680525359222,0.57802147,1803.3,1803.2,2.70372015]
[1680525362422,0.57802147,1803.3,1803.2,2.87332478]
[1680525363323,2.00536806,1803.4,1803.2,2.87332478]
[1680525363522,2.00536806,1803.4,1803.3,1.4071328]
[1680525363723,2.00536806,1803.4,1803.3,2.4071328]
[1680525364029,0.57802147,1803.4,1803.3,3.2391328]
[1680525364224,1.44564871,1803.5,1803.3,7.31865295]
[1680525364530,0.57802147,1803.5,1803.4,2.4060774]
[1680525364718,0.57802147,1803.5,1803.4,7.9470774]
[1680525364919,0.57802147,1803.6,1803.5,0.832]
[1680525365128,0.57802147,1803.6,1803.5,6.45273774]
[1680525367020,0.57802147,1803.6,1803.5,5.8718]
[1680525368230,1.44564871,1803.7,1803.5,6.45273774]
[1680525368438,0.5779004,1803.7,1803.6,9.61093774]
[1680525368634,0.57794031,1803.8,1803.6,11.75222697]
[1680525368829,0.57794031,1804.0,1803.8,0.832]
[1680525369130,0.57794031,1804.1,1804.0,0.832]
[1680525369323,0.57794031,1804.1,1804.0,1.664]
[1680525369726,0.57745088,1804.1,1804.0,1.664]
[1680525369929,0.57745088,1804.1,1804.0,0.832]
[1680525370933,2.4436272,1804.2,1804.0,0.832]
[1680525371134,0.57745088,1804.2,1804.0,0.832]
[1680525372135,0.57745088,1804.2,1803.9,1.108]
[1680525373538,1.57745088,1804.2,1803.9,1.108]
[1680525373749,0.57745088,1804.2,1803.9,1.108]
[1680525374928,3.2078,1804.1,1803.8,1.106]
[1680525375134,1.0,1804.0,1803.8,1.106]
[1680525375335,3.2078,1804.1,1803.9,0.53404944]
[1680525376129,1.68345088,1804.2,1803.9,0.53404944]
[1680525376335,3.63412966,1804.3,1804.0,1.108]
[1680525377031,2.76795334,1804.3,1804.0,1.108]
[1680525378128,0.57745088,1804.3,1804.0,1.108]
[1680525378435,0.57745088,1804.5,1804.3,1.106]
[1680525378638,1.4436272,1804.6,1804.4,1.108]
[1680525378836,3.78525088,1804.6,1804.5,1.106]
[1680525379227,3.2078,1804.6,1804.5,1.106]
[1680525379633,0.86617632,1804.8,1804.5,1.106]
[1680525379634,0.57745088,1804.8,1804.5,1.106]
[1680525379939,3.2078,1804.7,1804.5,1.106]
[1680525380330,3.2078,1804.7,1804.3,4.3138]
[1680525380535,3.2078,1804.7,1804.3,3.2078]
[1680525380536,1.098,1804.6,1804.3,3.2078]
[1680525381039,1.0,1804.5,1804.3,3.2078]
[1680525381535,3.2078,1804.7,1804.4,1.103]
[1680525381836,3.75957393,1804.7,1804.5,1.108]
[1680525382135,3.75957393,1804.7,1804.4,1.108]
[1680525386748,3.75957393,1804.7,1804.1,3.2078]
[1680525387039,1.0,1804.3,1804.0,1.106]
[1680525387249,4.2078,1804.3,1804.0,1.106]
[1680525387546,1.108,1804.4,1804.0,1.106]
[1680525387933,1.108,1804.4,1804.0,4.3138]
[1680525389746,1.108,1804.4,1804.0,1.106]
[1680525390341,1.108,1804.4,1804.1,0.65479585]
[1680525392145,4.3068,1804.5,1804.1,0.65479585]
[1680525392350,4.3138,1804.3,1804.1,0.65479585]
[1680525392649,4.3138,1804.3,1803.9,1.108]
[1680525392949,1.0,1804.2,1803.9,1.108]
[1680525393344,4.3138,1804.3,1803.9,1.108]
[1680525395248,1.0,1804.2,1803.9,1.108]
[1680525395653,4.3138,1804.3,1803.9,1.108]
[1680525396747,1.0,1804.2,1803.9,1.108]
[1680525396948,3.2078,1804.1,1803.9,1.108]
[1680525397447,4.3058,1804.1,1803.8,0.54789469]
[1680525397649,3.2078,1803.9,1803.6,13.725]
[1680525397956,3.2078,1803.9,1803.5,1.106]
[1680525398149,1.0,1803.8,1803.5,1.106]
[1680525398548,3.2078,1803.9,1803.5,1.106]
[1680525400756,3.2078,1803.7,1803.5,1.106]
[1680525403854,3.2078,1803.7,1803.4,1.68365648]
[1680525405344,3.2078,1803.7,1803.5,0.12494411]
[1680525407650,3.2078,1803.7,1803.3,2.55464119]
[1680525407955,3.2078,1803.7,1803.3,1.68365648]
[1680525407956,1.0,1803.6,1803.3,1.68365648]
[1680525408356,4.2078,1803.7,1803.3,1.68365648]
[1680525409057,4.2078,1803.7,1803.3,1.68865648]
[1680525409261,3.2078,1803.7,1803.3,1.68865648]
[1680525412156,4.3158,1803.7,1803.3,0.58065648]
[1680525417657,1.64290012,1803.8,1803.4,1.108]
[1680525417966,3.2078,1803.7,1803.4,1.108]
[1680525419866,1.098,1803.8,1803.4,1.108]
[1680525420467,1.098,1803.8,1803.5,0.12499728]
[1680525420667,1.098,1803.8,1803.5,1.12499728]
[1680525420866,3.2078,1803.7,1803.5,0.12499728]
[1680525421970,4.3138,1803.7,1803.5,0.12499728]
[1680525422359,4.3138,1803.7,1803.3,0.58065648]
[1680525422668,4.3138,1803.7,1803.3,1.14205386]
[1680525422868,4.3138,1803.7,1803.3,0.56139738]
[1680525423060,4.3138,1803.7,1803.2,6.76744119]
[1680525423467,4.3138,1803.7,1803.2,5.76744119]
[1680525424265,4.3138,1803.7,1803.2,6.76744119]
[1680525425270,4.3138,1803.7,1803.3,0.58065648]
[1680525425477,4.3138,1803.7,1803.3,1.58065648]
[1680525425867,4.3138,1803.7,1803.3,0.58065648]
[1680525426768,4.3138,1803.7,1803.3,1.58065648]
[1680525427167,3.2078,1803.7,1803.4,1.108]
[1680525432067,4.3138,1803.7,1803.4,0.58065648]
[1680525433073,1.108,1803.6,1803.4,0.58065648]
[1680525433378,3.2078,1803.5,1803.4,0.58065648]
[1680525435379,3.2078,1803.5,1803.4,0.70505838]
[1680525436475,0.57745088,1803.7,1803.4,1.57604309]
[1680525436780,3.2078,1803.6,1803.4,1.57604309]
[1680525437179,3.2078,1803.6,1803.5,0.58065648]
[1680525439577,3.78525088,1803.6,1803.5,0.58065648]
[1680525441979,4.07397632,1803.6,1803.5,0.87098471]
[1680525442379,4.07397632,1803.6,1803.5,0.58154304]
[1680525442785,5.46070176,1803.6,1803.5,0.58154304]
[1680525442983,5.75189654,1803.6,1803.4,0.58154304]
[1680525443179,3.26188438,1803.5,1803.3,0.58154304]
[1680525443488,5.07442838,1803.4,1803.3,0.58154304]
[1680525444381,4.07442838,1803.4,1803.3,0.58154304]
[1680525444582,4.07442838,1803.4,1803.3,0.57747032]
[1680525445474,4.65213901,1803.4,1803.3,0.57747032]
[1680525445677,4.65214337,1803.4,1803.3,0.57747032]
[1680525446087,4.07442838,1803.4,1803.3,0.57747032]
[1680525447189,4.65211489,1803.4,1803.3,0.57747032]
[1680525448490,5.17242838,1803.4,1803.2,0.87098471]
[1680525448690,3.22246946,1803.3,1803.0,0.87098471]
[1680525448892,4.88343032,1803.1,1803.0,0.87098471]
[1680525449093,4.3058,1803.1,1802.9,2.04179351]
[1680525449283,4.3058,1803.1,1802.9,0.87884987]
[1680525449489,3.78543032,1803.1,1802.9,0.87884987]
[1680525449690,3.2078,1803.1,1803.0,0.87098471]
[1680525450486,3.49978917,1803.1,1803.0,0.87098471]
[1680525451087,3.49978917,1803.1,1802.9,1.87884987]
[1680525451295,0.29198917,1803.1,1803.0,1.108]
[1680525451489,0.29198917,1803.1,1803.0,2.27094364]
[1680525451686,3.78543032,1803.4,1803.0,2.27094364]
[1680525451890,3.78543032,1803.4,1803.2,1.108]
[1680525452089,0.57763032,1803.4,1803.3,2.103]
[1680525452283,0.86644547,1803.5,1803.3,2.103]
[1680525452284,1.44407579,1803.5,1803.3,2.103]
[1680525452688,0.57763032,1803.5,1803.4,1.0]
[1680525453192,0.57763032,1803.5,1803.4,2.108]
[1680525453386,1.98541258,1803.8,1803.4,5.46663982]
[1680525453589,1.11896711,1803.8,1803.7,1.103]
[1680525453790,0.54133679,1803.8,1803.7,1.103]
[1680525453988,0.57763032,1803.9,1803.7,1.103]
[1680525454193,0.57763032,1803.9,1803.8,1.103]
[1680525462097,3.78543032,1804.0,1803.8,1.103]
[1680525463503,0.57763032,1804.0,1803.9,1.103]
[1680525463810,3.78543032,1804.2,1803.9,1.103]
[1680525464102,3.78543032,1804.2,1804.1,1.103]
[1680525465306,3.78543032,1804.2,1804.1,1.4262665]
[1680525468109,3.2078,1804.2,1804.1,1.4262665]
[1680525468414,0.57763032,1804.3,1804.1,1.4262665]
[1680525472113,0.57763032,1804.3,1804.2,1.108]
[1680525473109,6.34698801,1804.4,1804.2,1.108]
[1680525473710,0.57763032,1804.3,1804.1,0.3232665]
[1680525473917,3.2078,1804.2,1804.1,0.3232665]
[1680525475325,0.57763032,1804.3,1804.1,0.3232665]
[1680525476011,3.2078,1804.2,1804.1,0.3232665]
[1680525477824,7.34698801,1804.4,1804.1,0.3232665]
[1680525478320,1.0,1804.3,1804.1,0.3232665]
[1680525478519,3.27274254,1804.4,1804.1,0.3232665]
[1680525478721,4.2078,1804.3,1804.1,0.3232665]
[1680525478924,3.78543032,1804.3,1804.1,0.3232665]
[1680525479118,3.2078,1804.3,1804.1,0.3232665]
[1680525480323,3.78543032,1804.3,1804.1,0.41047349]
[1680525480521,3.2078,1804.3,1804.1,0.41047349]
[1680525480722,3.78543032,1804.3,1804.1,0.41047349]
[1680525481027,3.2078,1804.3,1804.1,0.41047349]
[1680525482627,3.78543032,1804.3,1804.2,1.108]
[1680525482823,0.57763032,1804.5,1804.2,1.106]
[1680525483028,0.57763032,1804.5,1804.4,4.3158]
[1680525483331,2.78844869,1804.7,1804.4,4.3158]
[1680525483332,1.63256431,1804.7,1804.4,4.3158]
[1680525483623,1.63256431,1804.7,1804.3,7.641]
[1680525483624,0.57763032,1804.9,1804.6,1.108]
[1680525483816,3.2078,1804.8,1804.6,1.108]
[1680525485624,4.3138,1804.8,1804.4,1.103]
[1680525486637,3.2078,1804.6,1804.4,1.103]
[1680525490927,5.3138,1804.8,1804.4,1.103]
[1680525491128,4.3138,1804.8,1804.4,1.103]
[1680525492131,4.3138,1804.8,1804.3,4.3158]
[1680525495233,4.3138,1804.8,1804.4,0.5838129]
[1680525495430,4.3138,1804.8,1804.4,1.5838129]
[1680525495830,4.3138,1804.8,1804.4,0.5838129]
[1680525497127,4.89143032,1804.8,1804.4,0.5838129]
[1680525499037,1.0,1804.7,1804.4,0.5838129]
[1680525500134,4.3058,1804.6,1804.4,0.5838129]
[1680525500434,4.88343032,1804.6,1804.1,1.103]
[1680525500734,3.2078,1804.4,1804.1,1.103]
[1680525501730,3.2078,1804.4,1803.9,1.97398092]
[1680525501731,4.3158,1804.4,1803.9,1.97398092]
[1680525501932,3.2078,1804.2,1803.9,1.103]
[1680525502127,3.2078,1804.2,1803.7,3.34844668]
[1680525502128,3.2078,1804.0,1803.7,4.15948396]
[1680525502341,3.2078,1804.0,1803.7,2.51943769]
[1680525502734,3.2078,1804.0,1803.7,3.51943769]
[1680525503737,4.3058,1804.0,1803.7,1.41643769]
[1680525503948,4.3058,1804.0,1803.5,0.87098092]
[1680525503949,1.098,1803.8,1803.5,0.87098092]
[1680525504232,4.3058,1803.8,1803.4,0.87098092]
[1680525504636,4.3058,1803.8,1803.4,1.87098092]
[1680525505637,4.3058,1803.8,1803.4,0.87098092]
[1680525506036,3.2078,1803.6,1803.4,0.87098092]
[1680525506437,1.108,1803.5,1803.2,0.87098092]
[1680525506634,4.3158,1803.5,1803.1,0.87098092]
[1680525506834,5.3158,1803.5,1803.1,0.87098092]
[1680525507137,3.2078,1803.3,1803.1,0.87098092]
[1680525508244,3.2078,1803.3,1803.0,2.97698092]
[1680525508434,3.2078,1803.3,1803.0,1.97698092]
[1680525510137,3.2078,1803.1,1803.0,0.87098092]
[1680525510439,3.2078,1803.1,1802.9,0.87098092]
[1680525511140,3.2078,1803.1,1802.8,1.97698092]
[1680525513336,3.2078,1803.1,1802.9,1.0]
[1680525514137,3.2078,1803.1,1802.8,2.97698092]
[1680525515141,3.2078,1803.1,1802.9,1.0]
[1680525516137,3.2078,1803.1,1802.9,2.106]
[1680525517045,3.2078,1803.1,1802.9,1.106]
[1680525517243,3.2078,1803.1,1802.8,2.103]
[1680525518842,1.098,1803.2,1802.8,2.103]
[1680525519039,1.098,1803.2,1802.8,5.3108]
[1680525519444,3.2078,1803.4,1803.0,1.106]
[1680525519647,3.2078,1803.4,1803.1,2.103]
[1680525519844,3.2078,1803.4,1803.2,1.0]
[1680525521043,3.2078,1803.4,1803.1,1.103]
[1680525521348,3.2078,1803.4,1803.1,2.103]
[1680525522047,3.2078,1803.4,1803.1,2.106]
[1680525522949,3.2078,1803.4,1803.1,1.106]
[1680525523846,3.2078,1803.4,1803.1,2.106]
[1680525524043,3.2078,1803.4,1803.1,1.106]
[1680525528751,4.3068,1803.6,1803.1,1.106]
[1680525528948,3.2078,1803.4,1803.1,1.106]
[1680525529844,3.2078,1803.2,1803.1,1.106]
[1680525530044,3.2078,1803.2,1802.9,1.102]
[1680525530449,3.2013027,1803.2,1802.9,1.102]
[1680525537459,4.86104305,1803.5,1803.1,1.103]
[1680525538563,3.2078,1803.3,1803.1,1.103]
[1680525538959,4.3158,1803.5,1803.1,1.103]
[1680525539258,3.2078,1803.3,1803.1,1.103]
[1680525542055,3.2078,1803.3,1803.2,1.108]
[1680525543760,3.77177309,1803.5,1803.2,1.108]
[1680525543957,3.2078,1803.5,1803.2,1.108]
[1680525544461,3.770664,1803.5,1803.2,1.108]
[1680525547262,4.34829432,1803.5,1803.2,1.108]